fUSD/lending_fUSD_20251024
["ID","MTS","AMOUNT","RATE_DAILY","PERIOD"]
[392304897,1761322328268,-500.0,0.00042191,30]
[392304898,1761322328280,-1807.7,0.00042191,30]
[392304899,1761322328290,-500.0,0.00042191,30]
[392304900,1761322328300,-500.0,0.00042191,2]
[392304901,1761322328311,-500.0,0.00042191,30]
[392304902,1761322328321,-500.0,0.00042191,30]
[392304903,1761322328331,-500.0,0.00042191,30]
[392304904,1761322328341,-326.35942918,0.00042191,30]
[392304905,1761322328351,-1380.28,0.00042191,30]
[392304906,1761322328361,-427.6843327,0.00042191,30]
[392304907,1761322328371,-606.24,0.00042191,30]
[392304908,1761322328380,-300.0,0.00042191,2]
[392304909,1761322328390,-783.69,0.00042191,30]
[392304910,1761322328399,-500.0,0.00042191,30]
[392304911,1761322328410,-806.84,0.00042191,30]
[392304912,1761322328420,-500.0,0.00042191,30]
[392304913,1761322328431,-500.0,0.00042191,30]
[392304914,1761322328441,-2341.55,0.00042191,30]
[392304915,1761322328451,-500.0,0.00042191,30]
[392304916,1761322328462,-500.0,0.00042191,30]
[392304917,1761322328472,-232.13,0.00042191,30]
[392304918,1761322328481,-500.0,0.00042191,30]
[392304919,1761322328491,-500.0,0.00042191,30]
[392304920,1761322328500,-500.0,0.00042191,30]
[392304921,1761322328510,-500.0,0.00042191,30]
[392304922,1761322328520,-500.0,0.00042191,30]
[392304923,1761322328530,-500.0,0.00042191,30]
[392304924,1761322328540,-716.52,0.00042191,30]
[392304925,1761322328551,-660.17,0.00042191,30]
[392304926,1761322328562,-531.64,0.00042191,30]
[392304927,1761322328571,-500.0,0.00042191,30]
[392304928,1761322328581,-538.15,0.00042191,30]
[392304929,1761322328590,-567.57,0.00042191,30]
[392304930,1761322328600,-500.0,0.00042191,30]
[392304931,1761322328610,-500.0,0.000422,120]
[392304932,1761322328620,-6456.0,0.00042214,2]
[392304933,1761322328630,-3487.0,0.00042214,2]
[392304934,1761322328640,-278.728,0.00042214,2]
[392304935,1761322328649,-150.6,0.00042234,2]
[392304936,1761322328659,-5000.0,0.0004227,2]
[392304937,1761322328669,-5000.0,0.00042279,2]
[392304938,1761322328679,-1788.52288659,0.000423,120]
[392304939,1761322328688,-557.64,0.000423,30]
[392304940,1761322328698,-150.0,0.0004232,120]
[392304941,1761322328707,-5000.0,0.00042368,2]
[392304942,1761322328717,-500.0,0.00042427,120]
[392304943,1761322328726,-301.15,0.00042436,30]
[392304944,1761322328738,-227.62,0.00042436,30]
[392304945,1761322328749,-629.95,0.00042436,30]
[392304946,1761322328759,-168.52,0.00042436,30]
[392304947,1761322328769,-682.78,0.00042436,30]
[392304948,1761322328781,-151.78,0.00042436,30]
[392304949,1761322328791,-414.35,0.00042436,30]
[392304950,1761322328800,-176.35,0.00042436,30]
[392304951,1761322328810,-301.85,0.00042436,30]
[392304952,1761322328821,-176.35,0.00042436,30]
[392304953,1761322328831,-547.6,0.00042436,30]
[392304954,1761322328841,-168.52,0.00042436,30]
[392304955,1761322328851,-150.0,0.00042436,30]
[392304956,1761322328860,-150.0,0.00042436,30]
[392304957,1761322328869,-414.35,0.00042436,30]
[392304958,1761322328879,-176.35,0.00042436,30]
[392304959,1761322328888,-168.52,0.00042436,30]
[392304960,1761322328898,-547.6,0.00042436,30]
[392304961,1761322328908,-150.0,0.00042436,30]
[392304962,1761322328918,-414.35,0.00042436,30]
[392304963,1761322328928,-176.35,0.00042436,30]
[392304964,1761322328938,-168.52,0.00042436,30]
[392304965,1761322328948,-414.35,0.00042436,30]
[392304966,1761322328962,-150.0,0.00042436,30]
[392304967,1761322328972,-547.6,0.00042436,30]
[392304968,1761322328982,-176.35,0.00042436,30]
[392304969,1761322328992,-168.52,0.00042436,30]
[392304970,1761322329002,-150.0,0.00042436,30]
[392304971,1761322329012,-414.35,0.00042436,30]
[392304972,1761322329022,-1094.22,0.00042436,30]
[392304973,1761322329033,-176.35,0.00042436,30]
[392304974,1761322329043,-414.35,0.00042436,30]
[392304975,1761322329053,-168.52,0.00042436,30]
[392304976,1761322329063,-547.6,0.00042436,30]
[392304977,1761322329073,-176.35,0.00042436,30]
[392304978,1761322329082,-168.52,0.00042436,30]
[392304979,1761322329093,-414.35,0.00042436,30]
[392304980,1761322329103,-168.52,0.00042436,30]
[392304981,1761322329113,-176.35,0.00042436,30]
[392304982,1761322329123,-414.35,0.00042436,30]
[392304983,1761322329133,-414.35,0.00042436,30]
[392304984,1761322329144,-176.35,0.00042436,30]
[392304985,1761322329154,-414.35,0.00042436,30]
[392304986,1761322329165,-168.52,0.00042436,30]
[392304987,1761322329175,-176.35,0.00042436,30]
[392304988,1761322329184,-486.28,0.00042436,30]
[392304989,1761322329194,-414.35,0.00042436,30]
[392304990,1761322329204,-176.15,0.00042436,30]
[392304991,1761322329214,-414.35,0.00042436,30]
[392304992,1761322329224,-724.20910413,0.0004245,7]
[392304993,1761322329233,-151.333365,0.00042465,30]
[392304994,1761322329243,-158.779104,0.00042465,30]
[392304995,1761322329253,-158.779104,0.00042465,30]
[392304996,1761322329263,-234.859181,0.00042465,30]
[392304997,1761322329272,-808.712269,0.00042465,30]
[392304998,1761322329283,-277.693017,0.00042465,30]
[392304999,1761322329293,-500.0,0.00042465,30]
[392305000,1761322329302,-412.62923617,0.00042465,30]
[392305001,1761322329311,-500.0,0.00042465,30]
[392305002,1761322329321,-500.0,0.00042465,30]
[392305003,1761322329331,-600.0,0.00042465,30]
[392305004,1761322329341,-500.0,0.00042465,30]
[392305005,1761322329350,-500.0,0.00042465,30]
[392305006,1761322329360,-294.10356281,0.00042465,30]
[392305007,1761322329370,-622.47,0.00042465,30]
[392305008,1761322329380,-500.0,0.00042465,30]
[392305009,1761322329389,-509.02,0.00042465,30]
[392305010,1761322329399,-516.35,0.00042465,30]
[392305011,1761322329408,-500.0,0.00042465,30]
[392305012,1761322329418,-825.82,0.00042465,30]
[392305013,1761322329429,-500.0,0.00042465,30]
[392305014,1761322329438,-500.0,0.00042465,30]
[392305015,1761322329447,-500.0,0.00042465,30]
[392305016,1761322329457,-500.0,0.00042465,30]
[392305017,1761322329466,-500.0,0.00042465,30]
[392305018,1761322329476,-500.0,0.00042465,30]
[392305019,1761322329485,-500.0,0.00042465,30]
[392305020,1761322329495,-607.61,0.00042465,30]
[392305021,1761322329504,-500.0,0.00042465,30]
[392305022,1761322329513,-500.0,0.00042465,30]
[392305023,1761322329522,-500.0,0.00042465,30]
[392305024,1761322329532,-510.24,0.00042465,30]
[392305025,1761322329542,-500.0,0.00042465,30]
[392305026,1761322329551,-500.0,0.00042465,30]
[392305027,1761322329560,-500.0,0.00042465,30]
[392305028,1761322329570,-500.0,0.00042465,30]
[392305029,1761322329579,-334.71057149,0.00042465,30]
[392305030,1761322329588,-500.0,0.00042465,30]
[392305031,1761322329597,-500.0,0.00042465,30]
[392305032,1761322329607,-500.0,0.00042465,30]
[392305033,1761322329615,-500.0,0.00042465,30]
[392305034,1761322329625,-500.0,0.00042465,30]
[392305035,1761322329635,-500.0,0.00042465,30]
[392305036,1761322329645,-644.18,0.00042465,30]
[392305037,1761322329654,-500.0,0.00042465,30]
[392305038,1761322329663,-210.65402367,0.00042465,30]
[392305039,1761322329673,-500.0,0.00042465,30]
[392305040,1761322329682,-626.86,0.00042465,30]
[392305041,1761322329692,-162.86706554,0.00042465,30]
[392305042,1761322329702,-769.96,0.00042465,30]
[392305043,1761322329712,-500.0,0.00042465,30]
[392305044,1761322329721,-538.58,0.00042465,30]
[392305045,1761322329730,-269.33754727,0.00042465,30]
[392305046,1761322329742,-500.0,0.00042465,30]
[392305047,1761322329751,-500.0,0.00042465,30]
[392305048,1761322329761,-500.0,0.00042465,30]
[392305049,1761322329771,-500.0,0.00042465,30]
[392305050,1761322329782,-609.88840866,0.00042465,30]
[392305051,1761322329791,-209.4711057,0.00042465,30]
[392305052,1761322329800,-500.0,0.00042465,30]
[392305053,1761322329811,-500.0,0.00042465,30]
[392305054,1761322329820,-801.91,0.00042465,30]
[392305055,1761322329831,-500.0,0.00042465,30]
[392305056,1761322329841,-500.0,0.00042465,30]
[392305057,1761322329851,-515.08,0.00042465,30]
[392305058,1761322329860,-627.53,0.00042465,30]
[392305059,1761322329869,-631.49,0.00042465,30]
[392305060,1761322329879,-500.0,0.00042465,30]
[392305061,1761322329889,-500.0,0.00042465,30]
[392305062,1761322329899,-858.53,0.00042465,30]
[392305063,1761322329908,-500.0,0.00042465,30]
[392305064,1761322329918,-500.0,0.00042465,30]
[392305065,1761322329928,-500.0,0.00042465,2]
[392305066,1761322329938,-500.0,0.00042465,30]
[392305067,1761322329947,-500.0,0.00042465,30]
[392305068,1761322329957,-500.0,0.00042465,30]
[392305069,1761322329967,-500.0,0.00042465,30]
[392305070,1761322329978,-500.0,0.00042465,30]
[392305071,1761322329988,-635.93,0.00042465,30]
[392305072,1761322329998,-500.0,0.00042465,30]
[392305073,1761322330008,-500.0,0.00042465,30]
[392305074,1761322330018,-500.0,0.00042465,30]
[392305075,1761322330030,-741.25,0.00042465,30]
[392305076,1761322330041,-500.0,0.00042465,30]
[392305077,1761322330051,-692.25,0.00042465,30]
[392305078,1761322330062,-500.0,0.00042465,30]
[392305079,1761322330073,-633.45,0.00042465,30]
[392305080,1761322330083,-500.0,0.00042465,30]
[392305081,1761322330094,-500.0,0.00042465,30]
[392305082,1761322330104,-500.0,0.00042465,30]
[392305083,1761322330114,-456.1054339,0.00042465,30]
[392305084,1761322330124,-682.78,0.00042465,30]
[392305085,1761322330134,-546.58365792,0.00042465,30]
[392305086,1761322330145,-500.0,0.00042465,30]
[392305087,1761322330155,-383.23184396,0.00042465,30]
[392305088,1761322330165,-500.0,0.00042465,30]
[392305089,1761322330175,-500.0,0.00042465,30]
[392305090,1761322330185,-500.0,0.00042465,30]
[392305091,1761322330195,-898.81,0.00042465,30]
[392305092,1761322330205,-517.47,0.00042465,30]
[392305093,1761322330215,-700.85,0.00042465,30]
[392305094,1761322330225,-500.0,0.00042465,30]
[392305095,1761322330235,-500.0,0.00042465,30]
[392305096,1761322330245,-500.0,0.00042465,30]
[392305097,1761322330256,-500.0,0.00042465,30]
[392305098,1761322330266,-500.0,0.00042465,30]
[392305099,1761322330276,-663.01,0.00042465,30]
[392305100,1761322330286,-500.0,0.00042465,30]
[392305101,1761322330296,-709.15,0.00042465,30]
[392305102,1761322330306,-500.0,0.00042465,30]
[392305103,1761322330316,-500.0,0.00042465,30]
[392305104,1761322330327,-707.03,0.00042465,30]
[392305105,1761322330338,-829.57,0.00042465,30]
[392305106,1761322330349,-952.31,0.00042465,30]
[392305107,1761322330359,-231.80640999,0.00042465,30]
[392305108,1761322330369,-500.0,0.00042465,30]
[392305109,1761322330380,-500.0,0.00042465,30]
[392305110,1761322330390,-500.0,0.00042465,30]
[392305111,1761322330400,-200.0,0.00042465,30]
[392305112,1761322330410,-527.2,0.00042465,30]
[392305113,1761322330421,-500.0,0.00042465,30]
[392305114,1761322330431,-351.12200612,0.00042465,30]
[392305115,1761322330442,-500.0,0.00042465,30]
[392305116,1761322330453,-500.0,0.00042465,30]
[392305117,1761322330463,-500.0,0.00042465,30]
[392305118,1761322330476,-771.78,0.00042465,30]
[392305119,1761322330487,-706.52,0.00042465,30]
[392305120,1761322330498,-359.86019244,0.00042465,30]
[392305121,1761322330509,-290.33919448,0.00042465,30]
[392305122,1761322330519,-768.08,0.00042465,30]
[392305123,1761322330531,-599.68,0.00042465,30]
[392305124,1761322330542,-500.0,0.00042465,30]
[392305125,1761322330552,-500.0,0.00042465,30]
[392305126,1761322330562,-613.19,0.00042465,30]
[392305127,1761322330574,-500.0,0.00042465,30]
[392305128,1761322330584,-613.95,0.00042465,30]
[392305129,1761322330594,-500.0,0.00042465,30]
[392305130,1761322330604,-167.83260693,0.00042465,30]
[392305131,1761322330615,-627.71,0.00042465,30]
[392305132,1761322330625,-500.0,0.00042465,30]
[392305133,1761322330635,-662.69,0.00042465,30]
[392305134,1761322330646,-526.63,0.00042465,30]
[392305135,1761322330657,-500.0,0.00042465,30]
[392305136,1761322330667,-500.0,0.00042465,30]
[392305137,1761322330678,-500.0,0.00042465,30]
[392305138,1761322330688,-500.0,0.00042465,30]
[392305139,1761322330699,-1090.4,0.00042465,30]
[392305140,1761322330710,-500.0,0.00042465,30]
[392305141,1761322330721,-500.65,0.00042465,30]
[392305142,1761322330732,-500.0,0.00042465,30]
[392305143,1761322330746,-500.0,0.00042465,30]
[392305144,1761322330757,-624.06,0.00042465,30]
[392305145,1761322330767,-755.72,0.00042465,30]
[392305146,1761322330778,-500.0,0.00042465,30]
[392305147,1761322330790,-500.0,0.00042465,30]
[392305148,1761322330800,-500.0,0.00042465,30]
[392305149,1761322330811,-740.41,0.00042465,30]
[392305150,1761322330823,-500.0,0.00042465,30]
[392305151,1761322330835,-500.0,0.00042465,30]
[392305152,1761322330845,-500.0,0.00042465,30]
[392305153,1761322330855,-500.0,0.00042465,30]
[392305154,1761322330866,-500.0,0.00042465,30]
[392305155,1761322330876,-500.0,0.00042465,30]
[392305156,1761322330887,-500.0,0.00042465,30]
[392305157,1761322330898,-500.0,0.00042465,30]
[392305158,1761322330908,-500.0,0.00042465,30]
[392305159,1761322330920,-500.0,0.00042465,30]
[392305160,1761322330931,-500.0,0.00042465,30]
[392305161,1761322330942,-500.0,0.00042465,30]
[392305162,1761322330953,-500.0,0.00042465,30]
[392305163,1761322330964,-500.0,0.00042465,30]
[392305164,1761322330974,-500.0,0.00042465,30]
[392305165,1761322330985,-500.0,0.00042465,30]
[392305166,1761322330996,-151.107744,0.00042465,30]
[392305167,1761322331006,-464.15734,0.00042465,30]
[392305168,1761322331017,-1136.13,0.00042465,30]
[392305169,1761322331028,-500.0,0.00042465,30]
[392305170,1761322331039,-549.55,0.00042465,30]
[392305171,1761322331050,-500.0,0.00042465,30]
[392305172,1761322331062,-638.56,0.00042465,30]
[392305173,1761322331072,-686.03,0.00042465,30]
[392305174,1761322331083,-419.25557524,0.00042465,30]
[392305175,1761322331093,-500.0,0.00042465,30]
[392305176,1761322331104,-706.79,0.00042465,30]
[392305177,1761322331115,-500.0,0.00042465,30]
[392305178,1761322331126,-500.0,0.00042465,30]
[392305179,1761322331136,-382.666022,0.00042465,30]
[392305180,1761322331146,-500.0,0.00042465,30]
[392305181,1761322331157,-500.0,0.00042465,30]
[392305182,1761322331167,-500.0,0.00042465,30]
[392305183,1761322331178,-500.0,0.00042465,30]
[392305184,1761322331188,-602.64,0.00042465,30]
[392305185,1761322331198,-586.4,0.00042465,30]
[392305186,1761322331209,-500.0,0.00042465,30]
[392305187,1761322331219,-500.0,0.00042465,30]
[392305188,1761322331229,-547.9,0.00042465,30]
[392305189,1761322331240,-566.32,0.00042465,30]
[392305190,1761322331251,-2351.88,0.00042465,2]
[392305191,1761322331262,-500.0,0.00042465,30]
[392305192,1761322331272,-500.0,0.00042465,30]
[392305193,1761322331283,-500.0,0.00042465,30]
[392305194,1761322331294,-533.06918482,0.00042465,30]
[392305195,1761322331305,-506.73,0.00042465,30]
[392305196,1761322331316,-500.0,0.00042465,30]
[392305197,1761322331327,-500.0,0.00042465,30]
[392305198,1761322331338,-500.0,0.00042465,30]
[392305199,1761322331349,-500.0,0.00042465,30]
[392305200,1761322331360,-500.0,0.00042465,30]
[392305201,1761322331370,-500.0,0.00042465,30]
[392305202,1761322331381,-500.0,0.00042465,30]
[392305203,1761322331391,-500.0,0.00042465,30]
[392305204,1761322331402,-772.81,0.00042465,30]
[392305205,1761322331412,-670.73,0.00042465,30]
[392305206,1761322331423,-500.0,0.00042465,30]
[392305207,1761322331433,-500.0,0.00042465,30]
[392305208,1761322331443,-500.0,0.00042465,30]
[392305209,1761322331453,-500.0,0.00042465,30]
[392305210,1761322331462,-500.0,0.00042465,30]
[392305211,1761322331470,-500.0,0.00042465,30]
[392305212,1761322331479,-519.40660005,0.00042465,30]
[392305213,1761322331488,-850.65,0.00042465,30]
[392305214,1761322331497,-500.0,0.00042465,30]
[392305215,1761322331506,-500.0,0.00042465,30]
[392305216,1761322331514,-507.25,0.00042465,30]
[392305217,1761322331522,-500.0,0.00042465,30]
[392305218,1761322331532,-784.75,0.00042465,30]
[392305219,1761322331542,-500.0,0.00042465,30]
[392305220,1761322331551,-500.0,0.00042465,30]
[392305221,1761322331560,-500.0,0.00042465,30]
[392305222,1761322331569,-500.0,0.00042465,30]
[392305223,1761322331579,-500.0,0.00042465,30]
[392305224,1761322331590,-601.83,0.00042465,30]
[392305225,1761322331599,-500.0,0.00042465,30]
[392305226,1761322331610,-610.23,0.00042465,30]
[392305227,1761322331620,-732.62,0.00042465,30]
[392305228,1761322331629,-523.68,0.00042465,30]
[392305229,1761322331639,-500.0,0.00042465,30]
[392305230,1761322331648,-500.0,0.00042465,30]
[392305231,1761322331657,-500.0,0.00042465,30]
[392305232,1761322331666,-500.0,0.00042465,30]
[392305233,1761322331675,-762.88,0.00042465,30]
[392305234,1761322331684,-626.64,0.00042465,30]
[392305235,1761322331692,-500.0,0.00042465,30]
[392305236,1761322331701,-895.22,0.00042465,30]
[392305237,1761322331709,-500.0,0.00042465,30]
[392305238,1761322331717,-500.0,0.00042465,30]
[392305239,1761322331727,-500.0,0.00042465,30]
[392305240,1761322331734,-500.0,0.00042465,30]
[392305241,1761322331745,-821.0,0.00042465,30]
[392305242,1761322331753,-500.0,0.00042465,30]
[392305243,1761322331762,-500.0,0.00042465,30]
[392305244,1761322331772,-500.0,0.00042465,30]
[392305245,1761322331783,-564.45,0.00042465,30]
[392305246,1761322331793,-500.0,0.00042465,30]
[392305247,1761322331803,-500.0,0.00042465,30]
[392305248,1761322331814,-500.0,0.00042465,30]
[392305249,1761322331824,-500.0,0.00042465,30]
[392305250,1761322331835,-500.0,0.00042465,30]
[392305251,1761322331846,-500.0,0.00042465,30]
[392305252,1761322331857,-500.0,0.00042465,30]
[392305253,1761322331867,-558.27,0.00042465,30]
[392305254,1761322331878,-911.49,0.00042465,30]
[392305255,1761322331888,-500.0,0.00042465,30]
[392305256,1761322331899,-500.0,0.00042465,30]
[392305257,1761322331908,-500.0,0.00042465,30]
[392305258,1761322332186,-500.0,0.00042465,30]
[392305259,1761322332203,-500.0,0.00042465,30]
[392305260,1761322332212,-361.61982725,0.00042465,30]
[392305261,1761322332222,-500.0,0.00042465,30]
[392305262,1761322332232,-645.37,0.00042465,30]
[392305263,1761322332242,-500.0,0.00042465,30]
[392305264,1761322332251,-500.0,0.00042465,30]
[392305265,1761322332262,-500.0,0.00042465,30]
[392305266,1761322332271,-654.32,0.00042465,30]
[392305267,1761322332283,-500.0,0.00042465,30]
[392305268,1761322332292,-1087.75,0.00042465,30]
[392305269,1761322332302,-466.24446569,0.00042465,30]
[392305270,1761322332312,-618.14,0.00042465,30]
[392305271,1761322332323,-434.57714888,0.00042465,30]
[392305272,1761322332334,-597.11,0.00042465,30]
[392305273,1761322332345,-756.12,0.00042465,30]
[392305274,1761322332355,-601.75,0.00042465,30]
[392305275,1761322332366,-500.0,0.00042465,30]
[392305276,1761322332378,-500.0,0.00042465,30]
[392305277,1761322332388,-500.0,0.00042465,30]
[392305278,1761322332398,-500.0,0.00042465,30]
[392305279,1761322332408,-500.0,0.00042465,30]
[392305280,1761322332418,-712.8,0.00042465,30]
[392305281,1761322332428,-500.0,0.00042465,30]
[392305282,1761322332438,-500.0,0.00042465,30]
[392305283,1761322332448,-526.50095103,0.00042465,5]
[392305284,1761322332458,-555.24,0.00042465,30]
[392305285,1761322332467,-448.18,0.00042465,30]
[392305286,1761322332476,-540.6,0.00042465,30]
[392305287,1761322332486,-500.0,0.00042465,30]
[392305288,1761322332495,-652.9,0.00042465,30]
[392305289,1761322332504,-500.0,0.00042465,30]
[392305290,1761322332514,-647.27,0.00042465,30]
[392305291,1761322332524,-500.0,0.00042465,30]
[392305292,1761322332534,-500.0,0.00042465,30]
[392305293,1761322332544,-500.0,0.00042465,30]
[392305294,1761322332553,-571.05,0.00042465,30]
[392305295,1761322332563,-500.0,0.00042465,30]
[392305296,1761322332572,-500.0,0.00042465,30]
[392305297,1761322332582,-500.0,0.00042465,30]
[392305298,1761322332592,-500.0,0.00042465,30]
[392305299,1761322332601,-756.91,0.00042465,30]
[392305300,1761322332611,-522.74,0.00042465,30]
[392305301,1761322332620,-632.46,0.00042465,30]
[392305302,1761322332630,-500.0,0.00042465,30]
[392305303,1761322332639,-500.0,0.00042465,30]
[392305304,1761322332648,-500.0,0.00042465,30]
[392305305,1761322332658,-500.0,0.00042465,30]
[392305306,1761322332669,-711.07,0.00042465,30]
[392305307,1761322332678,-500.0,0.00042465,30]
[392305308,1761322332688,-600.0,0.00042465,30]
[392305309,1761322332698,-500.0,0.00042465,30]
[392305310,1761322332707,-200.0,0.00042465,30]
[392305311,1761322332718,-739.05,0.00042465,30]
[392305312,1761322332729,-500.0,0.00042465,30]
[392305313,1761322332740,-500.0,0.00042465,30]
[392305314,1761322332753,-602.18,0.00042465,30]
[392305315,1761322332763,-500.0,0.00042465,30]
[392305316,1761322332773,-786.39,0.00042465,30]
[392305317,1761322332784,-500.0,0.00042465,30]
[392305318,1761322332796,-300.0,0.00042465,2]
[392305319,1761322332807,-726.2,0.00042465,30]
[392305320,1761322332818,-500.0,0.00042465,30]
[392305321,1761322332827,-589.03,0.00042465,30]
[392305322,1761322332837,-660.65,0.00042465,30]
[392305323,1761322332847,-771.99,0.00042465,30]
[392305324,1761322332856,-500.0,0.00042465,30]
[392305325,1761322332866,-500.0,0.00042465,30]
[392305326,1761322332877,-712.13,0.00042465,30]
[392305327,1761322332887,-741.67,0.00042465,30]
[392305328,1761322332898,-692.09,0.00042465,30]
[392305329,1761322332908,-506.74,0.00042465,30]
[392305330,1761322332918,-500.0,0.00042465,30]
[392305331,1761322332927,-500.0,0.00042465,30]
[392305332,1761322332937,-992.81,0.00042465,30]
[392305333,1761322332947,-500.0,0.00042465,30]
[392305334,1761322332957,-500.0,0.00042465,30]
[392305335,1761322332967,-500.0,0.00042465,30]
[392305336,1761322332977,-834.39,0.00042465,30]
[392305337,1761322332987,-597.68,0.00042465,30]
[392305338,1761322332997,-852.93,0.00042465,30]
[392305339,1761322333006,-500.0,0.00042465,30]
[392305340,1761322333016,-730.33,0.00042465,30]
[392305341,1761322333025,-500.0,0.00042465,30]
[392305342,1761322333035,-500.0,0.00042465,30]
[392305343,1761322333045,-500.0,0.00042465,30]
[392305344,1761322333055,-500.0,0.00042465,30]
[392305345,1761322333064,-500.0,0.00042465,30]
[392305346,1761322333074,-804.87,0.00042465,30]
[392305347,1761322333084,-200.573073,0.00042465,30]
[392305348,1761322333095,-296.42582799,0.00042465,30]
[392305349,1761322333104,-500.0,0.00042465,30]
[392305350,1761322333114,-500.0,0.00042465,30]
[392305351,1761322333124,-1592.15,0.00042465,30]
[392305352,1761322333134,-957.33,0.00042465,30]
[392305353,1761322333143,-500.0,0.00042465,30]
[392305354,1761322333153,-500.0,0.00042465,30]
[392305355,1761322333163,-500.0,0.00042465,30]
[392305356,1761322333173,-500.0,0.00042465,30]
[392305357,1761322333183,-522.56160738,0.00042465,30]
[392305358,1761322333193,-500.0,0.00042465,30]
[392305359,1761322333203,-500.0,0.00042465,30]
[392305360,1761322333213,-500.0,0.00042465,30]
[392305361,1761322333223,-500.0,0.00042465,30]
[392305362,1761322333233,-500.0,0.00042465,30]
[392305363,1761322333244,-533.69,0.00042465,30]
[392305364,1761322333254,-500.0,0.00042465,30]
[392305365,1761322333264,-543.13,0.00042465,30]
[392305366,1761322333273,-500.0,0.00042465,30]
[392305367,1761322333284,-705.53,0.00042465,30]
[392305368,1761322333293,-500.0,0.00042465,30]
[392305369,1761322333303,-500.0,0.00042465,30]
[392305370,1761322333312,-500.0,0.00042465,30]
[392305371,1761322333321,-500.0,0.00042465,30]
[392305372,1761322333331,-500.0,0.00042465,30]
[392305373,1761322333340,-500.0,0.00042465,30]
[392305374,1761322333350,-500.0,0.00042465,30]
[392305375,1761322333359,-500.0,0.00042465,30]
[392305376,1761322333369,-500.0,0.00042465,30]
[392305377,1761322333379,-637.51,0.00042465,30]
[392305378,1761322333389,-500.0,0.00042465,30]
[392305379,1761322333399,-721.76,0.00042465,30]
[392305380,1761322333409,-500.0,0.00042465,30]
[392305381,1761322333419,-500.0,0.00042465,30]
[392305382,1761322333428,-500.0,0.00042465,30]
[392305383,1761322333439,-835.57,0.00042465,30]
[392305384,1761322333448,-500.0,0.00042465,30]
[392305385,1761322333458,-500.0,0.00042465,30]
[392305386,1761322333467,-500.0,0.00042465,30]
[392305387,1761322333476,-500.0,0.00042465,30]
[392305388,1761322333486,-752.46,0.00042465,30]
[392305389,1761322333496,-500.0,0.00042465,30]
[392305390,1761322333505,-500.0,0.00042465,30]
[392305391,1761322333515,-500.0,0.00042465,30]
[392305392,1761322333525,-500.0,0.00042465,30]
[392305393,1761322333535,-500.0,0.00042465,30]
[392305394,1761322333545,-1181.61,0.00042465,30]
[392305395,1761322333554,-500.0,0.00042465,30]
[392305396,1761322333564,-590.26,0.00042465,30]